bitfinex/quotes_BTCUSD_20250620
["timestamp","ask_amount","ask_price","bid_price","bid_amount"]
[1750438196726,4.16893917,103790.0,103780.0,0.2217625]
[1750438197365,4.16893917,103790.0,103780.0,0.2313978]
[1750438198254,3.94609117,103790.0,103780.0,0.2217625]
[1750438198469,3.94609117,103790.0,103780.0,0.20249163]
[1750438198470,0.83389717,103790.0,103780.0,0.20249163]
[1750438198679,3.94609117,103790.0,103780.0,0.21212711]
[1750438198888,3.75339438,103790.0,103780.0,0.23139743]
[1750438199094,3.59155438,103790.0,103780.0,0.26309743]
[1750438199314,3.59155382,103790.0,103780.0,0.26309743]
[1750438199529,3.79843382,103790.0,103780.0,0.26309743]
[1750438199745,3.79843382,103790.0,103780.0,0.26424743]
[1750438200174,3.79843382,103790.0,103780.0,0.29464743]
[1750438200386,3.80806847,103790.0,103780.0,0.29464743]
[1750438200677,4.01040009,103790.0,103780.0,0.03184061]
[1750438200900,4.24593023,103790.0,103780.0,0.20249172]
[1750438201162,4.24593023,103790.0,103780.0,0.21212739]
[1750438201405,4.11866038,103790.0,103780.0,0.21212739]
[1750438201869,4.56911691,103790.0,103780.0,0.00014061]
[1750438202081,4.10902573,103790.0,103780.0,0.20249172]
[1750438202295,4.08640973,103790.0,103780.0,0.2217626]
[1750438202509,4.00316536,103790.0,103780.0,0.2531126]
[1750438202727,0.47935936,103790.0,103780.0,0.30428292]
[1750438202940,0.65515382,103790.0,103780.0,0.30428292]
[1750438203152,0.65515373,103790.0,103780.0,0.30428292]
[1750438203366,0.64551936,103790.0,103780.0,0.30428292]
[1750438203594,0.65515373,103790.0,103780.0,0.30428292]
[1750438203822,0.64551936,103790.0,103780.0,0.30428292]
[1750438204043,0.65515382,103790.0,103780.0,0.30428292]
[1750438204258,0.64551936,103790.0,103780.0,0.30428292]
[1750438204717,0.81935936,103790.0,103780.0,0.30428292]
[1750438204930,0.80009118,103790.0,103780.0,0.30428292]
[1750438205126,0.80972527,103790.0,103780.0,0.30428292]
[1750438205369,0.81935955,103790.0,103780.0,0.30428292]
[1750438206626,0.80972527,103790.0,103780.0,0.30428292]
[1750438207091,0.80009118,103790.0,103780.0,0.30428292]
[1750438207291,0.80972527,103790.0,103780.0,0.30428292]
[1750438207984,0.81935955,103790.0,103780.0,0.30428292]
[1750438208208,1.25247488,103790.0,103780.0,0.20249154]
[1750438208473,1.4530906,103790.0,103780.0,0.20249154]
[1750438209490,1.4530906,103790.0,103780.0,0.2121273]
[1750438209906,1.32597075,103790.0,103780.0,0.2217626]
[1750438210508,1.32597066,103790.0,103780.0,0.2217626]
[1750438210706,1.3163362,103790.0,103780.0,0.2121273]
[1750438211140,1.33880164,103790.0,103780.0,0.2121273]
[1750438211344,4.90145208,103790.0,103780.0,0.00014061]
[1750438211542,4.53788075,103790.0,103780.0,0.19285596]
[1750438211710,4.53788075,103790.0,103780.0,0.20249172]
[1750438213137,4.53788075,103790.0,103780.0,0.00977637]
[1750438213350,4.53788075,103790.0,103760.0,0.35971557]
[1750438213351,3.82420085,103770.0,103760.0,0.20238494]
[1750438213567,1.10521528,103770.0,103760.0,0.22165934]
[1750438213776,1.10521528,103770.0,103760.0,0.26403631]
[1750438213983,1.30758581,103770.0,103760.0,0.29423631]
[1750438214195,1.14735188,103770.0,103760.0,0.23129631]
[1750438214404,1.3497225,103770.0,103760.0,0.22165944]
[1750438214617,1.11485188,103770.0,103760.0,0.23129641]
[1750438214841,1.3172225,103770.0,103760.0,0.22165944]
[1750438215038,1.3172225,103770.0,103760.0,0.2312965]
[1750438215234,1.11485188,103770.0,103760.0,0.24293347]
[1750438215439,1.11485141,103770.0,103760.0,0.27453347]
[1750438215645,1.11485141,103770.0,103760.0,0.30587347]
[1750438215858,1.12448801,103770.0,103760.0,0.30587347]
[1750438216322,1.31722194,103770.0,103760.0,0.30587347]
[1750438216747,1.12448801,103770.0,103760.0,0.30587347]
[1750438216956,1.12448801,103770.0,103760.0,0.30687347]
[1750438217189,4.98560819,103770.0,103760.0,0.003]
[1750438218026,0.36891137,103760.0,103750.0,0.27284348]
[1750438218233,4.10687655,103760.0,103750.0,0.27284348]
[1750438218445,0.98504502,103760.0,103750.0,0.30408348]
[1750438218651,0.80009118,103760.0,103750.0,0.30408348]
[1750438218853,0.81936512,103760.0,103750.0,0.30408348]
[1750438219066,0.80972806,103760.0,103750.0,0.30408348]
[1750438219275,0.81936512,103760.0,103750.0,0.30408348]
[1750438219480,0.82900219,103760.0,103750.0,0.30608348]
[1750438219693,0.83863953,103760.0,103750.0,0.30608348]
[1750438219953,1.07401741,103760.0,103750.0,0.26639105]
[1750438220159,1.23965796,103760.0,103750.0,0.25656769]
[1750438220370,1.18697916,103760.0,103750.0,0.25656787]
[1750438220582,1.17734173,103760.0,103750.0,0.25656787]
[1750438220799,1.17734173,103760.0,103750.0,0.22466787]
[1750438221264,1.17734173,103760.0,103750.0,0.23430614]
[1750438221468,1.21239589,103760.0,103750.0,0.21502951]
[1750438221891,1.21239589,103760.0,103750.0,0.003]
[1750438222101,1.21239589,103760.0,103750.0,0.001]
[1750438222314,1.21239589,103760.0,103750.0,0.20240963]
[1750438222550,1.21239589,103760.0,103750.0,0.21204809]
[1750438222776,1.19661669,103760.0,103750.0,0.23132453]
[1750438222985,0.01927626,103750.0,103740.0,0.28610726]
[1750438223192,0.94909698,103750.0,103740.0,0.29688609]
[1750438223689,0.95873544,103750.0,103740.0,0.29688609]
[1750438223908,0.99674312,103750.0,103740.0,0.28724745]
[1750438224118,1.17023794,103750.0,103740.0,0.28724745]
[1750438224333,1.17037428,103750.0,103740.0,0.28824745]
[1750438224541,1.16073592,103750.0,103740.0,0.29024745]
[1750438224956,1.16073592,103750.0,103740.0,0.25814745]
[1750438225182,1.16073592,103750.0,103740.0,0.24736834]
[1750438225389,1.16073592,103750.0,103740.0,0.24850843]
[1750438226011,1.16073592,103750.0,103740.0,0.21620843]
[1750438227703,1.14332217,103750.0,103740.0,0.30982529]
[1750438227906,0.87608227,103750.0,103740.0,0.30982529]
[1750438228120,1.32653555,103750.0,103740.0,0.20542914]
[1750438228337,1.13376447,103750.0,103740.0,0.23434647]
[1750438228553,1.13376447,103750.0,103740.0,0.26714647]
[1750438228768,1.32653555,103750.0,103740.0,0.26714647]
[1750438228979,1.13376391,103750.0,103740.0,0.26714647]
[1750438229188,1.14340227,103750.0,103740.0,0.26714647]
[1750438229806,1.12404591,103750.0,103740.0,0.29878647]
[1750438230012,1.14332199,103750.0,103740.0,0.29878647]
[1750438230477,1.15296035,103750.0,103740.0,0.29878647]
[1750438230685,1.13368372,103750.0,103740.0,0.29878647]
[1750438230895,1.14332199,103750.0,103740.0,0.29878647]
[1750438231108,1.15296035,103750.0,103740.0,0.29764647]
[1750438231389,1.15296035,103750.0,103740.0,0.26714647]
[1750438231602,1.15296035,103750.0,103740.0,0.23434647]
[1750438231603,1.16259881,103750.0,103740.0,0.23434647]
[1750438232029,1.14332199,103750.0,103740.0,0.23434647]
[1750438232240,1.14332199,103750.0,103740.0,0.26694647]
[1750438232449,1.14332199,103750.0,103740.0,0.26808647]
[1750438232640,0.94868783,103750.0,103740.0,0.26808647]
[1750438232894,0.2875188,103750.0,103740.0,0.34604304]
[1750438233094,0.47235497,103750.0,103740.0,0.29898647]
[1750438233303,0.3192188,103750.0,103740.0,0.23434647]
[1750438233512,0.95873432,103750.0,103740.0,0.23434647]
[1750438233726,1.18053672,103750.0,103740.0,0.21506853]
[1750438233908,1.21193747,103750.0,103740.0,0.23434665]
[1750438234148,1.13404957,103750.0,103740.0,0.24398548]
[1750438234565,1.15332611,103750.0,103740.0,0.27692548]
[1750438234775,0.67395839,103750.0,103740.0,0.27692548]
[1750438235222,0.66428031,103750.0,103740.0,0.30802548]
[1750438235436,0.96848957,103750.0,103740.0,0.30802548]
[1750438235642,0.97812784,103750.0,103740.0,0.30802548]
[1750438235844,0.9877662,103750.0,103740.0,0.30802548]
[1750438236300,0.96848957,103750.0,103740.0,0.30802548]
[1750438236928,0.95885149,103750.0,103740.0,0.30802548]
[1750438237137,0.5083983,103750.0,103740.0,0.30802548]
[1750438237350,0.4891225,103750.0,103740.0,0.30628548]
[1750438237564,0.50839839,103750.0,103740.0,0.30742548]
[1750438238189,0.97812793,103750.0,103740.0,0.27578548]
[1750438238613,0.96848957,103750.0,103740.0,0.27578548]
[1750438238882,0.97812784,103750.0,103740.0,0.30728548]
[1750438239304,0.96848939,103750.0,103740.0,0.30728548]
[1750438239519,0.81584492,103750.0,103740.0,0.37511898]
[1750438239740,0.81584492,103750.0,103740.0,0.30843548]
[1750438239951,0.47936688,103750.0,103740.0,0.30843548]
[1750438240175,0.46009118,103750.0,103740.0,0.41825526]
[1750438240611,0.80009118,103750.0,103740.0,0.41825526]
[1750438240815,0.01885805,103760.0,103750.0,0.29937647]
[1750438241024,0.01885805,103760.0,103750.0,0.29984872]
[1750438241025,0.47894923,103760.0,103750.0,0.29984872]
[1750438241232,0.46009118,103760.0,103750.0,0.29984872]
[1750438241454,0.4887971,103760.0,103750.0,0.29984872]
[1750438241663,0.8287971,103760.0,103750.0,0.29984872]
[1750438241876,0.8287971,103760.0,103750.0,0.46701074]
[1750438242971,0.17283414,103790.0,103780.0,0.21198659]
[1750438243189,0.17283414,103790.0,103780.0,0.23125728]
[1750438243190,4.08876512,103790.0,103780.0,0.23125728]
[1750438243410,0.41223558,103780.0,103760.0,0.22163094]
[1750438243625,1.00606325,103770.0,103760.0,0.22163094]
[1750438244064,0.92018236,103770.0,103760.0,0.28698094]
[1750438244287,0.46009118,103770.0,103760.0,0.28698094]
[1750438244700,0.4910865,103770.0,103760.0,0.28698094]
[1750438245128,0.4910865,103770.0,103760.0,0.35149137]
[1750438245564,0.95117768,103770.0,103760.0,0.28698094]
[1750438245790,0.97044985,103770.0,103760.0,0.24299416]
[1750438246001,0.36891202,103760.0,103750.0,0.19324333]
[1750438246207,1.0556157,103760.0,103750.0,0.21252015]
[1750438246428,1.2206957,103760.0,103750.0,0.21252024]
[1750438246640,1.23360387,103760.0,103750.0,0.00047225]
[1750438246857,1.25516625,103760.0,103750.0,0.00047225]
[1750438249012,1.25400625,103760.0,103750.0,0.00047225]
[1750438249225,1.25516625,103760.0,103750.0,0.00047225]
[1750438249427,1.25516625,103760.0,103750.0,0.20288188]
[1750438249635,1.25516625,103760.0,103750.0,0.0101108]
[1750438249852,1.25516625,103760.0,103750.0,0.00047225]
[1750438249853,1.35044518,103760.0,103750.0,0.00047225]
[1750438254768,4.46263918,103760.0,103750.0,0.00047225]
[1750438257098,4.94561017,103760.0,103750.0,0.00047225]
[1750438257271,4.51447599,103760.0,103750.0,0.00047225]
[1750438257845,4.51371599,103760.0,103750.0,0.00047225]
[1750438258082,4.51571599,103760.0,103750.0,0.00047225]
[1750438258281,4.51771599,103760.0,103750.0,0.00047225]
[1750438259307,4.97780717,103760.0,103750.0,0.00047225]
[1750438259899,4.51771599,103760.0,103750.0,0.00047225]
[1750438260104,4.97780717,103760.0,103750.0,0.00047225]
[1750438260313,4.97780717,103760.0,103730.0,0.0001]
[1750438260314,0.55206796,103740.0,103730.0,0.0001]
[1750438260521,4.90331992,103740.0,103730.0,0.0001]
[1750438261145,4.86965992,103740.0,103730.0,0.21218879]
[1750438261352,4.86014091,103740.0,103730.0,0.0001]
[1750438261557,4.86014091,103740.0,103730.0,0.0031]
[1750438261765,4.86014091,103740.0,103730.0,0.21318869]
[1750438261947,4.81140245,103740.0,103730.0,0.27428869]
[1750438262150,4.80176362,103740.0,103730.0,0.27428869]
[1750438262382,4.7921247,103740.0,103730.0,0.24298878]
[1750438262817,4.7921247,103740.0,103730.0,0.25262882]
[1750438263033,4.7921247,103740.0,103730.0,0.24298878]
[1750438263265,4.91849455,103740.0,103730.0,0.21218878]
[1750438263476,4.88739455,103740.0,103730.0,0.21218878]
[1750438263706,4.88739455,103740.0,103730.0,0.26226895]
[1750438263918,4.7921247,103740.0,103730.0,0.27190889]
[1750438264132,4.80176353,103740.0,103730.0,0.26226895]
[1750438264344,4.80176353,103740.0,103730.0,0.21218878]
[1750438264783,4.59408353,103740.0,103730.0,0.23146885]
[1750438265009,4.80164353,103740.0,103730.0,0.27190861]
[1750438265238,4.81128301,103740.0,103730.0,0.2719087]
[1750438265446,4.80164409,103740.0,103730.0,0.23334847]
[1750438265673,3.67903259,103740.0,103730.0,0.25262827]
[1750438265884,4.79200461,103740.0,103730.0,0.24298851]
[1750438266091,4.92801394,103740.0,103730.0,0.20254866]
[1750438266305,4.91837474,103740.0,103730.0,0.21218897]
[1750438266529,4.91837474,103740.0,103730.0,0.22182901]
[1750438266740,4.88727474,103740.0,103730.0,0.22182901]
[1750438266969,4.88727474,103740.0,103730.0,0.23146877]
[1750438267163,4.69444471,103740.0,103730.0,0.23146877]
[1750438267640,4.82216452,103740.0,103730.0,0.22182901]
[1750438267852,4.82332452,103740.0,103730.0,0.23146877]
[1750438268068,4.59917486,103740.0,103730.0,0.23146877]
[1750438268306,4.801604,103740.0,103730.0,0.23146877]
[1750438268529,4.37237636,103740.0,103730.0,0.29617877]
[1750438268739,0.80972982,103740.0,103730.0,0.29617877]
[1750438268952,0.96417118,103740.0,103730.0,0.29617877]
[1750438269365,0.97380982,103740.0,103730.0,0.29617877]
[1750438269816,0.51371864,103740.0,103730.0,0.29617877]
[1750438270021,0.98344865,103740.0,103730.0,0.29617877]
[1750438270238,0.83864677,103740.0,103730.0,0.29617877]
[1750438270448,1.501167,103740.0,103730.0,0.29617877]
[1750438270872,1.29873795,103740.0,103730.0,0.29617877]
[1750438271314,0.82900748,103740.0,103730.0,0.29617877]
[1750438271520,0.81936856,103740.0,103730.0,0.29617877]
[1750438271739,0.82900748,103740.0,103730.0,0.29617877]
[1750438272178,0.80009118,103740.0,103730.0,0.29617877]
[1750438272386,0.80972982,103740.0,103730.0,0.29617877]
[1750438272593,0.80009118,103740.0,103730.0,0.29617877]
[1750438272799,0.80972992,103740.0,103730.0,0.29617877]
[1750438273217,0.81936884,103740.0,103730.0,0.29617877]
[1750438273398,0.83864714,103740.0,103730.0,0.29617877]
[1750438274092,0.83864705,103740.0,103730.0,0.29617877]
[1750438274298,0.82900785,103740.0,103730.0,0.29617877]
[1750438274507,1.26018236,103740.0,103730.0,0.29617877]
[1750438274727,1.2698211,103740.0,103730.0,0.29617877]
[1750438275166,1.28909904,103740.0,103730.0,0.29617877]
[1750438275582,1.29873833,103740.0,103730.0,0.29617877]
[1750438276635,1.49152799,103740.0,103730.0,0.28653901]
[1750438276838,1.50116747,103740.0,103730.0,0.3058188]
[1750438277045,0.58098511,103740.0,103730.0,0.3058188]
[1750438277231,1.50116747,103740.0,103730.0,0.3058188]
[1750438277757,1.52152491,103740.0,103730.0,0.20254847]
[1750438277967,1.49152873,103740.0,103730.0,0.2121886]
[1750438278176,1.65532873,103740.0,103730.0,0.2121886]
[1750438278391,1.80276883,103740.0,103730.0,0.0001]
[1750438278602,4.87643372,103740.0,103730.0,0.20254847]
[1750438278809,4.86679443,103740.0,103730.0,0.20254866]
[1750438279031,4.96206428,103740.0,103730.0,0.20254866]
[1750438279445,4.9524248,103740.0,103730.0,0.20254866]
[1750438280068,4.9524248,103740.0,103730.0,0.00974041]
[1750438280271,4.9524248,103740.0,103730.0,0.20254866]
[1750438280477,4.85715495,103740.0,103730.0,0.21218897]
[1750438280681,4.85715495,103740.0,103730.0,0.20254866]
[1750438281097,4.85715495,103740.0,103730.0,0.0001]
[1750438281355,4.85715495,103740.0,103730.0,0.20254866]
[1750438282309,4.88611695,103740.0,103730.0,0.20254866]
[1750438282566,4.9813868,103740.0,103730.0,0.21218879]
[1750438282785,4.9813868,103740.0,103730.0,0.20254866]
[1750438283464,4.9813868,103740.0,103730.0,0.21218897]
[1750438283685,4.99102628,103740.0,103730.0,0.22182919]
[1750438283915,4.58441666,103740.0,103730.0,0.24110871]
[1750438284131,4.58441666,103740.0,103730.0,0.27320871]
[1750438284548,4.59405605,103740.0,103730.0,0.27320871]
[1750438284754,4.59405558,103740.0,103730.0,0.27320871]
[1750438285026,4.60369497,103740.0,103730.0,0.27320871]
[1750438285264,4.60369422,103740.0,103730.0,0.27320871]
[1750438285469,4.69896407,103740.0,103730.0,0.27320871]
[1750438285886,4.70860346,103740.0,103730.0,0.27320871]
[1750438286106,3.69315125,103740.0,103730.0,0.27320871]
[1750438286322,4.61333361,103740.0,103730.0,0.27320871]
[1750438286561,4.61333361,103740.0,103730.0,0.24110871]
[1750438286777,4.79648463,103740.0,103730.0,0.22182891]
[1750438287002,4.79648463,103740.0,103730.0,0.23146885]
[1750438287003,4.80733411,103740.0,103730.0,0.23146885]
[1750438287215,4.58441629,103740.0,103730.0,0.24110815]
[1750438287427,4.59405558,103740.0,103730.0,0.27410815]
[1750438287881,4.63070456,103740.0,103730.0,0.27410815]
[1750438288100,4.62106517,103740.0,103730.0,0.27410815]
[1750438288533,4.61142588,103740.0,103730.0,0.27410815]
[1750438288742,4.62106517,103740.0,103730.0,0.27410815]
[1750438289206,4.63070437,103740.0,103730.0,0.27410815]
[1750438289426,4.64034376,103740.0,103730.0,0.27410815]
[1750438289634,4.8234945,103740.0,103730.0,0.25482854]
[1750438289837,4.63070484,103740.0,103730.0,0.27410815]
[1750438290043,4.60369525,103740.0,103730.0,0.27410815]
[1750438290252,4.80612439,103740.0,103730.0,0.26446839]
[1750438290691,4.80612439,103740.0,103730.0,0.27410815]
[1750438290692,4.60369525,103740.0,103730.0,0.27410815]
[1750438291111,4.40133836,103740.0,103730.0,0.27410815]
[1750438291331,0.34,103740.0,103730.0,0.30591815]
[1750438291573,0.80009118,103740.0,103730.0,0.30591815]
[1750438292006,0.80009118,103740.0,103730.0,0.41573793]
[1750438293550,0.80009118,103740.0,103730.0,0.57853793]
[1750438294431,1.28909912,103740.0,103730.0,0.2644683]
[1750438294648,1.28909912,103740.0,103730.0,0.3942283]
[1750438294863,1.29873841,103740.0,103730.0,0.3942283]
[1750438295083,1.48188943,103740.0,103730.0,0.19290825]
[1750438295294,1.60093036,103740.0,103730.0,0.20254856]
[1750438295948,1.49152883,103740.0,103730.0,0.28423854]
[1750438296158,1.28909969,103740.0,103730.0,0.25323854]
[1750438296369,1.49152864,103740.0,103730.0,0.24238878]
[1750438296582,1.29873889,103740.0,103730.0,0.25202872]
[1750438296809,1.2890995,103740.0,103730.0,0.26166857]
[1750438297027,1.29873879,103740.0,103730.0,0.26166857]
[1750438297241,1.29873879,103740.0,103730.0,0.27130833]
[1750438297674,1.33444793,103740.0,103730.0,0.20254856]
[1750438297887,1.39905858,103740.0,103730.0,0.22182891]
[1750438298126,1.60453858,103740.0,103730.0,0.22182891]
[1750438298344,1.60453858,103740.0,103730.0,0.23146895]
[1750438298552,1.57173858,103740.0,103730.0,0.2411088]
[1750438299186,1.57173858,103740.0,103730.0,0.23146895]
[1750438299398,1.57173858,103740.0,103730.0,0.24110889]
[1750438299609,1.57173858,103740.0,103730.0,0.24110843]
[1750438300447,1.34834892,103740.0,103730.0,0.23146821]
[1750438300705,1.33870944,103740.0,103730.0,0.24110797]
[1750438300910,0.93955456,103740.0,103730.0,0.24110797]
[1750438301549,0.92991499,103740.0,103730.0,0.24110797]
[1750438301765,0.94919293,103740.0,103730.0,0.24110797]
[1750438302201,0.06211775,103740.0,103730.0,0.24110797]
[1750438302418,0.92018236,103740.0,103730.0,0.30430797]
[1750438302638,0.93945992,103740.0,103730.0,0.30546797]
[1750438302853,0.00963781,103750.0,103740.0,0.22170699]
[1750438303065,0.46009118,103750.0,103740.0,0.28606699]
[1750438303290,0.46972889,103750.0,103740.0,0.28606699]
[1750438303517,0.80009118,103750.0,103740.0,0.28606699]
[1750438304140,0.80109118,103750.0,103740.0,0.28606699]
[1750438304346,0.80209118,103750.0,103740.0,0.28606699]
[1750438304583,0.46209118,103750.0,103740.0,0.28606699]
[1750438304805,0.80209118,103750.0,103740.0,0.46955219]
[1750438305062,0.342,103750.0,103740.0,0.46955219]
[1750438305510,0.001,103750.0,103740.0,0.46955219]
[1750438305950,0.001,103750.0,103740.0,0.51539219]
[1750438306818,0.00047254,103760.0,103750.0,0.30338647]
[1750438307029,0.00047254,103760.0,103750.0,0.63546329]
[1750438307977,0.00047254,103760.0,103750.0,0.63646329]
[1750438308201,0.00047254,103760.0,103750.0,0.63546329]
[1750438308698,0.00047254,103760.0,103750.0,0.64046329]
[1750438308919,0.00047254,103760.0,103750.0,0.64346329]
[1750438310050,0.34047254,103760.0,103750.0,0.64346329]
[1750438310740,0.00047254,103760.0,103750.0,0.64346329]
[1750438311660,0.00047254,103760.0,103750.0,0.68622329]
[1750438315571,0.00047254,103760.0,103750.0,1.14631447]
[1750438315794,0.00047254,103760.0,103750.0,1.54491447]
[1750438316013,0.00047254,103760.0,103750.0,1.69491447]
[1750438316273,0.02,103780.0,103770.0,0.76053492]
[1750438316490,0.02013654,103780.0,103770.0,0.92333492]
[1750438316926,0.02013654,103780.0,103770.0,0.46324374]
[1750438317363,0.02013654,103780.0,103770.0,1.01861385]
[1750438317826,0.02013654,103780.0,103770.0,1.02861385]
[1750438318032,0.02013654,103780.0,103770.0,1.03561385]
[1750438318250,0.02013654,103780.0,103770.0,1.1308837]
[1750438318480,0.02013654,103780.0,103770.0,1.79097488]
[1750438318730,0.02013654,103780.0,103770.0,1.88555928]
[1750438318929,0.02013654,103780.0,103770.0,1.4254681]
[1750438319202,0.02013654,103780.0,103770.0,1.7240681]
[1750438320347,0.02013654,103780.0,103770.0,1.7084187]
[1750438320625,0.02013654,103780.0,103770.0,1.08552752]
[1750438320877,0.48022772,103780.0,103770.0,1.02654667]
[1750438321119,0.02013654,103780.0,103770.0,0.99761167]
[1750438321358,0.55647266,103780.0,103770.0,0.95501167]
[1750438321839,0.55647266,103780.0,103770.0,0.79205167]
[1750438322089,0.55647266,103780.0,103770.0,0.92375167]
[1750438323078,0.02013654,103780.0,103770.0,0.93829252]
[1750438323558,1.35072772,103780.0,103770.0,0.74233252]
[1750438323785,1.35072772,103780.0,103770.0,0.90529252]
[1750438324037,1.32022772,103780.0,103770.0,0.74233252]
[1750438324281,1.32986283,103780.0,103770.0,0.63251274]
[1750438324552,1.36036265,103780.0,103770.0,0.79559274]
[1750438324791,1.40431776,103780.0,103770.0,0.49699274]
[1750438325268,1.36999776,103780.0,103770.0,0.49699274]
[1750438325531,1.36999776,103780.0,103770.0,0.48999274]
[1750438325752,0.86013654,103780.0,103770.0,0.48999274]
[1750438325966,1.32022772,103780.0,103770.0,0.48999274]
[1750438326631,1.32022772,103780.0,103770.0,0.47999274]
[1750438327481,1.32986274,103780.0,103770.0,0.47999274]
[1750438327757,0.86013654,103780.0,103770.0,0.64043167]
[1750438327989,1.32022772,103780.0,103770.0,0.65497252]
[1750438328209,1.32022772,103780.0,103770.0,0.62407252]
[1750438329507,1.32022772,103780.0,103770.0,0.65647252]
[1750438329719,1.31822772,103780.0,103770.0,0.65647252]
[1750438329926,0.85813654,103780.0,103770.0,0.65647252]
[1750438330335,1.31822772,103780.0,103770.0,0.62407252]
[1750438331842,1.31822772,103780.0,103770.0,0.65587252]
[1750438332861,1.31822772,103780.0,103770.0,0.47963274]
[1750438333523,1.31822772,103780.0,103770.0,0.65550252]
[1750438333739,0.85813654,103780.0,103770.0,0.65550252]
[1750438334186,0.51813654,103780.0,103770.0,1.1155937]
[1750438334405,0.51813654,103780.0,103770.0,1.62568488]
[1750438334621,0.51813654,103780.0,103770.0,1.82568488]
[1750438335053,0.51813654,103780.0,103770.0,1.3655937]
[1750438335541,0.51813654,103780.0,103770.0,1.3715937]
[1750438335776,0.51813654,103780.0,103770.0,1.83168488]
[1750438336193,0.51813654,103780.0,103770.0,1.83868488]
[1750438336612,0.51813654,103780.0,103770.0,1.3785937]
[1750438337037,0.51813654,103780.0,103770.0,0.96142252]
[1750438337471,0.51813654,103780.0,103770.0,1.53623136]
[1750438340038,0.51813654,103780.0,103770.0,1.53615136]
[1750438340627,0.28868468,103780.0,103770.0,1.53615136]
[1750438341240,0.13913612,103780.0,103770.0,1.44088151]
[1750438341774,0.13913612,103780.0,103770.0,1.88948151]
[1750438342026,0.13550375,103780.0,103770.0,1.88948151]
[1750438342233,0.13550375,103780.0,103770.0,2.22948151]
[1750438342793,0.13550375,103780.0,103770.0,2.22348151]
[1750438343056,0.13550375,103780.0,103770.0,1.65167267]
[1750438343248,0.13550375,103780.0,103770.0,2.24048151]
[1750438343734,0.13550375,103780.0,103770.0,2.03492151]
[1750438343913,0.13550375,103780.0,103770.0,2.24088151]
[1750438345188,0.13550375,103780.0,103770.0,2.26981351]
[1750438345366,0.13550375,103780.0,103770.0,2.06385351]
[1750438345542,0.13550375,103780.0,103770.0,0.73450382]
[1750438345750,0.13550375,103780.0,103770.0,0.91161182]
[1750438345922,0.13550375,103780.0,103770.0,0.34092182]
[1750438346149,0.47550375,103780.0,103770.0,0.34092182]
[1750438346337,1.19175753,103780.0,103770.0,0.40920289]
[1750438346745,1.20783254,103780.0,103770.0,0.40920289]
[1750438347181,1.15935753,103780.0,103770.0,0.39520289]
[1750438347388,1.16899246,103780.0,103770.0,0.39520289]
[1750438347562,1.17862757,103780.0,103770.0,0.38520289]
[1750438347948,1.16899246,103780.0,103770.0,0.38920289]
[1750438348163,1.16899246,103780.0,103770.0,0.38916289]
[1750438348164,1.17862757,103780.0,103770.0,0.38916289]
[1750438348372,1.16899246,103780.0,103770.0,0.38516289]
[1750438348595,0.59418362,103780.0,103770.0,0.38916289]
[1750438348804,0.58454869,103780.0,103770.0,0.38916289]
[1750438349015,0.47550375,103780.0,103770.0,0.49498267]
[1750438349239,0.47650375,103780.0,103770.0,0.49498267]
[1750438350553,0.47650375,103780.0,103770.0,0.49623267]
[1750438351404,0.47650375,103780.0,103770.0,0.49498267]
[1750438353732,1.11251259,103780.0,103770.0,0.33146267]
[1750438353950,1.11371259,103780.0,103770.0,0.38512289]
[1750438354412,0.53890375,103780.0,103770.0,0.38512289]
[1750438354647,1.11371259,103780.0,103770.0,0.38512289]
[1750438354897,1.11371259,103780.0,103770.0,0.22164289]
[1750438355109,1.11371259,103780.0,103770.0,0.38520289]
[1750438355523,1.12334761,103780.0,103770.0,0.38520289]
[1750438355729,1.11371259,103780.0,103770.0,0.38520289]
[1750438356361,1.11371259,103780.0,103770.0,0.22164289]
[1750438356570,1.11371259,103780.0,103770.0,0.38516289]
[1750438356774,1.1233477,103780.0,103770.0,0.38516289]
[1750438356979,1.11371259,103780.0,103770.0,0.38516289]
[1750438357812,1.12334761,103780.0,103770.0,0.38516289]
[1750438358017,1.11371259,103780.0,103770.0,0.38516289]
[1750438358265,1.13298291,103780.0,103770.0,0.38492289]
[1750438359108,1.13298291,103780.0,103770.0,0.22164289]
[1750438359317,1.13298291,103780.0,103770.0,0.38492289]
[1750438359520,1.13298291,103780.0,103770.0,0.22164289]
[1750438360580,1.44987475,103780.0,103770.0,0.22164308]
[1750438360794,1.24752364,103780.0,103770.0,0.23127912]
[1750438361240,1.15225379,103780.0,103770.0,0.23127912]
[1750438361448,1.35460481,103780.0,103770.0,0.23127912]
[1750438361656,1.15225379,103780.0,103770.0,0.23127912]
[1750438362950,1.15225369,103780.0,103770.0,0.23127912]
[1750438363161,1.14261821,103780.0,103770.0,0.23127912]
[1750438363367,1.13298291,103780.0,103770.0,0.23127912]
[1750438363590,1.11371259,103780.0,103770.0,0.23127912]
[1750438363806,0.47650375,103780.0,103770.0,0.23127912]
[1750438364196,0.47650375,103780.0,103770.0,0.32655805]
[1750438364509,0.47650375,103780.0,103770.0,0.3410989]
[1750438364778,0.13650375,103780.0,103770.0,0.3410989]
[1750438365025,0.47650375,103780.0,103770.0,0.3410989]
[1750438369380,0.47650375,103780.0,103770.0,0.3423289]
[1750438370494,0.47650375,103780.0,103770.0,0.3739289]
[1750438374281,0.47650375,103780.0,103770.0,0.4061289]
[1750438377194,0.47650375,103780.0,103770.0,0.6131289]
[1750438378694,1.05131259,103780.0,103770.0,0.5046989]
[1750438379535,0.47650375,103780.0,103770.0,0.5046989]
[1750438381310,0.47650375,103780.0,103770.0,0.5059289]
[1750438382062,0.47650375,103780.0,103770.0,0.5046989]
[1750438382506,0.47650375,103780.0,103770.0,0.5059289]
[1750438382917,0.47650375,103780.0,103770.0,0.5368289]
[1750438383128,0.47650375,103780.0,103770.0,0.5684289]
[1750438383537,0.47650375,103780.0,103770.0,0.5368289]
[1750438384034,0.47650375,103780.0,103770.0,0.5059289]
[1750438384238,1.05131259,103780.0,103770.0,0.3410989]
[1750438384437,1.08385259,103780.0,103770.0,0.5046589]
[1750438384669,1.1249877,103780.0,103770.0,0.23127912]
[1750438384915,1.134623,103780.0,103770.0,0.39475912]
[1750438385130,1.02001425,103780.0,103770.0,0.39475912]
[1750438385350,1.02964973,103780.0,103770.0,0.23127912]
[1750438385563,1.03928531,103780.0,103770.0,0.23127912]
[1750438385768,1.02964973,103780.0,103770.0,0.23127912]
[1750438385945,1.02001425,103780.0,103770.0,0.23127912]
[1750438386186,1.00074393,103780.0,103770.0,0.23127912]
[1750438387026,1.05163915,103780.0,103770.0,0.32655805]
[1750438387235,0.47650375,103780.0,103770.0,0.32655805]
[1750438388295,0.54250375,103780.0,103770.0,0.32655805]
[1750438388508,1.11880915,103780.0,103770.0,0.48991805]
[1750438388773,1.12844417,103780.0,103770.0,0.48991805]
[1750438389195,1.11880915,103780.0,103770.0,0.48983805]
[1750438390337,1.11880915,103780.0,103770.0,0.32655805]
[1750438390562,1.11880915,103780.0,103770.0,0.48983805]
[1750438392203,1.13807947,103780.0,103770.0,0.21200685]
[1750438392430,1.14771495,103780.0,103770.0,0.38472289]
[1750438392909,1.15735053,103780.0,103770.0,0.38472289]
[1750438393380,1.35970155,103780.0,103770.0,0.22164289]